fUSD/lending_fUSD_20241031
["ID","MTS","AMOUNT","RATE_DAILY","PERIOD"]
[341116847,1730398245402,-5000.0,0.0005,30]
[341116848,1730398245411,-200.0,0.0005,2]
[341116849,1730398245421,-200.0,0.0005,2]
[341116850,1730398245433,-150.0,0.00050137,60]
[341116851,1730398245442,-150.0,0.00050137,60]
[341116852,1730398245456,-150.0,0.00050137,60]
[341116853,1730398245470,-150.0,0.00050137,60]
[341116855,1730398245484,-150.0,0.00050137,60]
[341116857,1730398245497,-150.0,0.00050137,60]
[341116859,1730398245508,-150.0,0.00050137,60]
[341116860,1730398245522,-150.0,0.00050137,60]
[341116862,1730398245537,-150.0,0.00050137,60]
[341116864,1730398245552,-150.0,0.00050137,60]
[341116865,1730398245567,-163.12,0.00050288,2]
[341116866,1730398245581,-7062.97466882,0.00050429,120]
[341116870,1730398245797,-673.71199378,0.00050429,120]
[341116871,1730398245811,-252.00498916,0.00050429,120]
[341116872,1730398245825,-261.77880923,0.00050429,120]
[341116876,1730399045464,157.34,0.00015342,2]
[341116877,1730399108471,9534.36,0.00016,2]
[341116878,1730399108493,1200.0,0.00016,2]
[341116879,1730399108515,1200.0,0.00016,2]
[341116880,1730399108536,1200.0,0.00016,2]
[341116881,1730399108556,1200.0,0.00016,2]
[341116882,1730399108575,1200.0,0.00016,2]
[341116883,1730399108603,1200.0,0.00016,2]
[341116884,1730399108622,1200.0,0.00016,2]
[341116885,1730399108642,1200.0,0.00016,2]
[341116886,1730399108661,1200.0,0.00016,2]
[341116887,1730399108680,1200.0,0.00016,2]
[341116888,1730399108705,1200.0,0.00016,2]
[341116889,1730399108749,524755.08132536,0.00016,2]
[341116892,1730399234108,-1950.18429656,0.00021,2]
[341116893,1730399234129,-500.0,0.00024932,2]
[341116894,1730399234149,-214.4115,0.00031677,2]
[341116895,1730399234169,-3325.90037755,0.000351,30]
[341116896,1730399234188,-4051.265336,0.000398,2]
[341116897,1730399234207,-1372.13536707,0.0004,2]
[341116898,1730399241307,-1668.05621916,0.0004,2]
[341116899,1730399241327,-1000.0,0.00042,5]
[341116900,1730399241348,-1101.86060435,0.00042,120]
[341116901,1730399251097,-525.15110418,0.00042,120]
[341116902,1730399251119,-162.34,0.000438,36]
[341116903,1730399251139,-550.26933381,0.000441,2]
[341116904,1730399251158,-250.0,0.000441,2]
[341116905,1730399251178,-545.17,0.0004545,2]
[341116906,1730399251198,-885.70093315,0.00046605,2]
[341116907,1730399251219,-184.77,0.00046923,2]
[341116908,1730399251243,-162.34,0.000475,42]
[341116909,1730399251264,-162.34,0.000475,42]
[341116910,1730399251284,-545.17,0.00047714,2]
[341116911,1730399251304,-250.0,0.00047812,120]
[341116912,1730399251324,-250.0,0.00047938,120]
[341116913,1730399251344,-640.0,0.00047941,2]
[341116914,1730399251365,-6764.8313448,0.00048017,2]
[341116915,1730399251392,-2316.80785455,0.00048017,2]
[341116916,1730399254101,-217.10148389,0.00048017,2]
[341116917,1730399260273,327.94620775,0.00018,2]
[341116918,1730399279518,4203.90718398,0.00013,2]
[341116919,1730399283701,10938.26824488,0.0001,2]
[341116920,1730399286816,487564.53712093,0.00015,2]
[341116921,1730399329737,2150.85364232,0.0001421,7]
[341116927,1730399351092,-637.08252983,0.000232,2]
[341116928,1730399351112,-302.35721404,0.000299,2]
[341116929,1730399351134,-994.64,0.0003,2]
[341116930,1730399351154,-358.96,0.0003,2]
[341116931,1730399351173,-1246.9186986,0.00035,2]
[341116932,1730399352110,-22863.06488134,0.00035,2]
[341116933,1730399352130,-724.275,0.000379,2]
[341116934,1730399352155,-576.0,0.00042,2]
[341116954,1730399431705,-703.36,0.00048088,30]
[341116955,1730399431717,-4.90228,0.00048088,30]
[341116956,1730399431726,-200.0,0.00048179,2]
[341116957,1730399431735,-381.92506788,0.0004822,2]
[341116958,1730399431858,-756.5643918,0.0004822,2]
[341116960,1730399438106,-1319.85583993,0.0004822,2]
[341116961,1730399438118,-1134.36410778,0.0004822,2]
[341116962,1730399438129,-3190.99998,0.0004822,2]
[341116963,1730399438142,-2519.99999999,0.0004822,2]
[341116964,1730399438158,-2525.10000002,0.0004822,2]
[341116972,1730399440035,-5036.59999999,0.0004822,2]
[341116973,1730399440047,-703.56,0.0004822,2]
[341117105,1730399442823,-2522.01600001,0.0004822,2]
[341117110,1730399445867,-276.43710676,0.0004822,2]
[341117116,1730399450688,150.0,0.00017605,2]
[341117117,1730399464356,1322.36825,0.00032015,2]
[341117118,1730399464725,1322.36825,0.00039716,2]
[341117119,1730399466121,177.906,0.00032015,2]
[341117120,1730399473813,163.641,0.00030898,2]
[341117121,1730399474037,163.641,0.00038836,2]
[341117122,1730399492359,150.0,0.00017605,2]
[341117123,1730399534202,244.4,0.00017605,2]
[341117125,1730399564556,154.73,0.00015342,2]
[341117126,1730399999198,550.0,0.00015,2]
[341117127,1730400000301,600.0,0.00017,2]
[341117128,1730400001394,650.0,0.00019,2]
[341117130,1730400097338,153.36,0.00015342,2]
[341117131,1730400178548,-700.0,0.00021,2]
[341117132,1730400335144,-234.16314048,0.00024932,2]
[341117133,1730400435099,-265.83685952,0.00024932,2]
[341117134,1730400435121,-150.0,0.00034548,10]
[341117135,1730400435143,-224.084,0.00039272,54]
[341117136,1730400435163,-177.06,0.00039272,2]
[341117137,1730400435182,-1266.47824103,0.00041113,2]
[341117138,1730400437128,-502.7110463,0.00037548,10]
[341117139,1730400437148,-500.0,0.00037548,10]
[341117140,1730400437169,-500.0,0.00037548,10]
[341117141,1730400437190,-500.0,0.00037548,10]
[341117142,1730400437211,-500.0,0.00037548,10]
[341117143,1730400437231,-500.0,0.00037548,10]
[341117144,1730400437251,-15675.70705208,0.00041113,2]
[341117145,1730400444172,-161.23035524,0.000272,30]
[341117146,1730400445098,-338.76964476,0.000272,30]
[341117147,1730400445118,-500.0,0.000272,30]
[341117148,1730400445139,-500.0,0.000272,30]
[341117149,1730400445159,-500.0,0.000272,30]
[341117150,1730400445180,-500.0,0.000272,30]
[341117151,1730400445202,-500.0,0.000272,30]
[341117152,1730400445224,-500.0,0.000272,30]
[341117153,1730400445244,-500.0,0.000272,30]
[341117154,1730400445265,-500.0,0.000272,30]
[341117155,1730400445285,-500.0,0.000272,30]
[341117156,1730400445304,-500.0,0.000272,30]
[341117157,1730400445332,-500.0,0.000272,30]
[341117158,1730400445356,-500.0,0.000272,30]
[341117159,1730400445377,-500.0,0.00037548,10]
[341117160,1730400445398,-500.0,0.00037548,10]
[341117161,1730400445418,-500.0,0.00037548,10]
[341117162,1730400445442,-500.0,0.00037548,10]
[341117163,1730400445461,-500.0,0.00037548,10]
[341117164,1730400445482,-500.0,0.00037548,10]
[341117165,1730400445503,-500.0,0.00037548,10]
[341117166,1730400445524,-503.02681633,0.00037548,10]
[341117167,1730400445545,-500.0,0.00037548,10]
[341117168,1730400445570,-500.0,0.00037548,10]
[341117169,1730400445590,-500.0,0.00037548,10]
[341117170,1730400445611,-500.0,0.00037548,10]
[341117171,1730400445632,-131.320349,0.00037548,10]
[341117172,1730400452123,-507.90773758,0.00027,30]
[341117173,1730400452147,-500.0,0.00027,30]
[341117174,1730400452167,-500.0,0.00027,30]
[341117175,1730400452187,-500.0,0.00027,30]
[341117176,1730400452205,-502.66190882,0.00027,30]
[341117177,1730400452225,-500.0,0.00027,30]
[341117178,1730400452244,-900.0,0.00027,30]
[341117179,1730400452264,-500.0,0.000272,30]
[341117180,1730400452284,-500.0,0.000272,30]
[341117181,1730400452303,-500.0,0.000272,30]
[341117182,1730400452324,-500.0,0.000272,30]
[341117183,1730400452345,-500.0,0.000272,30]
[341117184,1730400452367,-500.0,0.000272,30]
[341117185,1730400452386,-500.0,0.000272,30]
[341117186,1730400452409,-500.0,0.000272,30]
[341117187,1730400452434,-500.0,0.000272,30]
[341117188,1730400452456,-600.0,0.000272,30]
[341117189,1730400452480,-500.0,0.000272,30]
[341117190,1730400452502,-500.0,0.000272,30]
[341117191,1730400452527,-500.0,0.000272,30]
[341117192,1730400452549,-500.0,0.000272,30]
[341117193,1730400452571,-500.0,0.000272,30]
[341117194,1730400452590,-500.0,0.000272,30]
[341117195,1730400452609,-500.0,0.000272,30]
[341117196,1730400452628,-500.0,0.000272,30]
[341117197,1730400452648,-500.0,0.000272,30]
[341117198,1730400452668,-368.679651,0.00037548,10]
[341117199,1730400452688,-500.0,0.00037548,10]
[341117200,1730400452709,-500.0,0.00037548,10]
[341117201,1730400452729,-500.0,0.00037548,10]
[341117202,1730400452749,-500.0,0.00037548,10]
[341117203,1730400452770,-500.0,0.00037548,10]
[341117204,1730400452789,-500.0,0.00037548,10]
[341117205,1730400452809,-500.0,0.00040548,10]
[341117206,1730400452830,-500.0,0.00040548,10]
[341117207,1730400452850,-500.0,0.00040548,10]
[341117208,1730400452869,-500.0,0.00040548,10]
[341117209,1730400452889,-500.0,0.00040548,10]
[341117210,1730400452908,-500.0,0.00040548,10]
[341117211,1730400452927,-510.62819932,0.00040548,10]
[341117212,1730400452945,-500.0,0.00040548,10]
[341117213,1730400452964,-511.84840123,0.00040548,10]
[341117214,1730400452984,-500.0,0.00040548,10]
[341117215,1730400453004,-500.0,0.00040548,10]
[341117216,1730400453023,-500.0,0.00040548,10]
[341117217,1730400453046,-500.0,0.00040548,10]
[341117218,1730400453066,-500.0,0.00040548,10]
[341117219,1730400453086,-500.0,0.00040548,10]
[341117220,1730400453108,-500.0,0.00040548,10]
[341117221,1730400453127,-151.3324187,0.00044493,6]
[341117222,1730400453147,-553.16,0.00046773,2]
[341117223,1730400453167,-163.641,0.00046775,14]
[341117224,1730400453186,-4132.67,0.00047197,2]
[341117225,1730400453206,-611.9,0.00047197,30]
[341117226,1730400453229,-2472.26,0.00047197,2]
[341117227,1730400453254,-1322.36825,0.00047417,14]
[341117228,1730400453274,-855.9,0.00047655,2]
[341117229,1730400453297,-2497.44448818,0.0004774,2]
[341117230,1730400453317,-3430.64055466,0.00047999,7]
[341117231,1730400453338,-421.77993276,0.00048027,2]
[341117232,1730400453361,-708.26228,0.00048288,30]
[341117233,1730400453382,-306.94,0.00048376,120]
[341117234,1730400453404,-855.9,0.00048421,2]
[341117235,1730400453425,-300.0,0.00048486,4]
[341117236,1730400453448,-708.26228,0.00048488,30]
[341117237,1730400453468,-759.7,0.00048493,2]
[341117238,1730400453487,-584.56,0.00048493,2]
[341117239,1730400453507,-488.0,0.00048504,2]
[341117240,1730400453528,-172.48,0.00048558,2]
[341117241,1730400453548,-150.17,0.00048634,2]
[341117242,1730400453567,-708.26228,0.00048688,30]
[341117243,1730400453589,-23900.0,0.00048691,2]
[341117244,1730400453610,-150.0,0.00048706,7]
[341117245,1730400453634,-250.0,0.00048801,120]
[341117246,1730400453654,-4649.31,0.00048874,2]
[341117247,1730400453675,-150.88,0.00048955,120]
[341117248,1730400453701,-512.0,0.00048963,2]
[341117249,1730400453722,-182.95,0.00049008,2]
[341117250,1730400453742,-267.89,0.00049031,30]
[341117251,1730400453762,-553.16,0.00049037,2]
[341117252,1730400453880,-152.4,0.00049039,2]
[341117253,1730400453904,-5207.4083,0.00049041,20]
[341117254,1730400453925,-267.89,0.00049045,30]
[341117255,1730400453946,-385.59,0.00049072,2]
[341117256,1730400453966,-708.26228,0.00049088,30]
[341117257,1730400453988,-200.0,0.0004909,2]
[341117258,1730400454009,-855.9,0.00049186,2]
[341117259,1730400454030,-708.26228,0.00049288,30]
[341117260,1730400454051,-267.89,0.0004939,30]
[341117261,1730400454072,-10309.5486,0.000494,2]
[341117262,1730400454093,-1000.0,0.000494,2]
[341117263,1730400454114,-998.87,0.00049442,10]
[341117264,1730400454134,-832.39,0.00049442,10]
[341117265,1730400454155,-693.66,0.00049442,10]
[341117266,1730400454176,-578.05,0.00049442,10]
[341117267,1730400454196,-267.89,0.00049442,30]
[341117268,1730400454216,-151.0,0.00049452,120]
[341117269,1730400454236,-151.0,0.00049452,120]
[341117270,1730400454256,-151.0,0.00049452,60]
[341117271,1730400454276,-151.0,0.00049452,120]
[341117272,1730400454296,-167.281357,0.00049452,120]
[341117273,1730400454316,-151.0,0.00049452,120]
[341117274,1730400454338,-151.0,0.00049452,120]
[341117275,1730400454362,-151.0,0.00049452,120]
[341117276,1730400454383,-151.0,0.00049452,120]
[341117277,1730400454405,-151.0,0.00049452,120]
[341117278,1730400454427,-152.51436,0.00049452,120]
[341117279,1730400454448,-151.0,0.00049452,120]
[341117280,1730400454469,-319.436828,0.00049452,120]
[341117281,1730400454489,-151.0,0.00049452,120]
[341117282,1730400454509,-319.436828,0.00049452,120]
[341117283,1730400454530,-2519.192012,0.00049452,120]
[341117284,1730400454551,-2519.192012,0.00049452,120]
[341117285,1730400454571,-151.0,0.00049452,120]
[341117286,1730400454592,-151.0,0.00049452,120]
[341117287,1730400454614,-151.0,0.00049452,120]
[341117288,1730400454639,-151.0,0.00049452,120]
[341117289,1730400454660,-156.047259,0.00049452,120]
[341117290,1730400454681,-1135.756486,0.00049452,120]
[341117291,1730400454702,-1135.756486,0.00049452,120]
[341117292,1730400454723,-300.12719,0.00049452,7]
[341117293,1730400454743,-151.0,0.00049452,120]
[341117294,1730400454763,-300.12719,0.00049452,7]
[341117295,1730400454784,-151.0,0.00049452,120]
[341117296,1730400454803,-168.448844,0.00049452,120]
[341117297,1730400454824,-153.895429,0.00049452,120]
[341117298,1730400454845,-151.0,0.00049452,120]
[341117299,1730400454865,-151.0,0.00049452,120]
[341117300,1730400454886,-151.0,0.00049452,120]
[341117301,1730400454905,-151.0,0.00049452,7]
[341117302,1730400454926,-152.459188,0.00049452,120]
[341117303,1730400454946,-151.0,0.00049452,120]
[341117304,1730400454966,-282.911883,0.00049452,120]
[341117305,1730400454987,-282.911883,0.00049452,120]
[341117306,1730400455007,-151.0,0.00049452,120]
[341117307,1730400455027,-403.811153,0.00049452,120]
[341117308,1730400455047,-403.811153,0.00049452,120]
[341117309,1730400455067,-759.7,0.00049452,60]
[341117310,1730400455089,-415.67,0.00049452,60]
[341117311,1730400455108,-759.7,0.00049452,60]
[341117312,1730400455128,-759.7,0.00049452,60]
[341117313,1730400455148,-759.7,0.00049452,60]
[341117314,1730400455169,-759.7,0.00049452,60]
[341117315,1730400455188,-759.7,0.00049452,60]
[341117316,1730400455211,-759.7,0.00049452,60]
[341117317,1730400455235,-759.7,0.00049452,60]
[341117318,1730400455256,-759.7,0.00049452,60]
[341117319,1730400455278,-708.26228,0.00049488,30]
[341117320,1730400455300,-267.89,0.0004949,30]
[341117321,1730400455320,-151.0,0.000495,120]
[341117322,1730400455350,-151.0,0.000495,120]
[341117323,1730400455371,-165.085958,0.000495,120]
[341117324,1730400455391,-269.849302,0.000495,120]
[341117325,1730400455410,-214.062179,0.000495,120]
[341117326,1730400455432,-151.0,0.000495,120]
[341117327,1730400455453,-151.0,0.000495,120]
[341117328,1730400455473,-151.0,0.000495,120]
[341117329,1730400455493,-151.0,0.000495,120]
[341117330,1730400455513,-291.969093,0.000495,120]
[341117331,1730400455534,-151.0,0.000495,120]
[341117332,1730400455557,-221.080236,0.000495,120]
[341117333,1730400455580,-250.0,0.000496,2]
[341117334,1730400455600,-708.26228,0.00049688,30]
[341117335,1730400455620,-855.9,0.00049952,2]
[341117336,1730400455640,-8728.73714913,0.00049992,30]
[341117337,1730400545168,-500.0,0.00027,30]
[341117338,1730400545200,-500.0,0.00027,30]
[341117339,1730400545226,-500.0,0.00027,30]
[341117340,1730400545252,-500.0,0.000272,30]
[341117341,1730400545281,-500.0,0.000272,30]
[341117342,1730400551117,-507.65319035,0.00040548,10]
[341117343,1730400551138,-7907.81,0.00041084,2]
[341117344,1730400585869,150.0,0.00041586,2]
[341117347,1730400631962,-152.0,0.00046988,3]
[341117348,1730400631971,-275.320623,0.00049452,120]
[341117349,1730400631983,-151.0,0.00049452,120]
[341117350,1730400631992,-151.0,0.00049452,120]
[341117351,1730400632001,-218.028376,0.00049452,120]
[341117352,1730400632010,-155.844885,0.00049452,120]
[341117353,1730400632019,-151.0,0.00049452,120]
[341117354,1730400632028,-150.0,0.00049787,7]
[341117355,1730400632037,-590.4,0.000498,120]
[341117356,1730400632047,-150.0,0.00049803,7]
[341117357,1730400632056,-150.0,0.00049828,7]
[341117358,1730400632065,-150.0,0.00049833,7]
[341117359,1730400632074,-150.0,0.00049847,7]
[341117360,1730400632083,-150.0,0.00049851,7]
[341117361,1730400632093,-150.0,0.00049855,7]
[341117362,1730400632102,-150.0,0.00049856,7]
[341117363,1730400632111,-150.0,0.0004986,7]
[341117364,1730400632120,-150.0,0.00049867,7]
[341117365,1730400632129,-150.0,0.00049869,7]
[341117366,1730400632138,-150.0,0.00049878,7]
[341117367,1730400632147,-150.0,0.00049886,7]
[341117368,1730400632156,-150.0,0.00049889,7]
[341117369,1730400632165,-150.0,0.00049907,7]
[341117370,1730400632174,-150.0,0.00049917,7]
[341117371,1730400632183,-150.0,0.00049927,7]
[341117372,1730400632193,-150.0,0.00049931,7]
[341117373,1730400632201,-150.0,0.00049932,7]
[341117374,1730400632211,-150.0,0.00049933,7]
[341117375,1730400632220,-150.0,0.00049945,7]
[341117376,1730400632229,-106.95471765,0.00049956,7]
[341117377,1730400632245,-43.04528235,0.00049956,7]
[341117378,1730400632260,-150.0,0.00049962,7]
[341117379,1730400632269,-150.0,0.00049963,7]
[341117380,1730400632278,-150.0,0.00049967,7]
[341117381,1730400632287,-150.0,0.00049968,7]
[341117382,1730400632295,-22.98093246,0.00049979,7]
[341117383,1730400632306,-127.01906754,0.00049979,7]
[341117384,1730400632315,-150.0,0.0004998,7]
[341117385,1730400632324,-1142.67127077,0.00049992,30]
[341117386,1730400632335,-392.574586,0.00049992,30]
[341117387,1730400632349,-580.87891067,0.00049992,30]
[341117388,1730400632360,-1677.13808343,0.00049992,30]
[341117389,1730400632369,-150.0,0.00049992,7]
[341117390,1730400632379,-150.0,0.00049996,7]
[341117391,1730400632388,-150.0,0.00049997,7]
[341117392,1730400632397,-56.53191657,0.0005,3]
[341117393,1730400632411,-328.4348001,0.0005,3]
[341117394,1730400632422,-810.13498673,0.0005,3]
[341117395,1730400632431,-1789.0,0.0005,120]
[341117396,1730400632440,-200.0,0.0005,2]
[341117397,1730400632450,-352.89,0.0005,7]
[341117398,1730400632459,-371.0,0.0005,14]
[341117399,1730400632468,-151.0,0.0005,120]
[341117400,1730400632477,-2284.71764703,0.0005,5]
[341117401,1730400632491,-300.12719,0.0005,7]
[341117402,1730400632501,-300.12719,0.0005,7]
[341117403,1730400632510,-151.0,0.0005,120]
[341117404,1730400632519,-231.234935,0.0005,120]
[341117405,1730400632529,-151.0,0.0005,120]
[341117406,1730400632538,-151.0,0.0005,120]
[341117407,1730400632548,-151.0,0.0005,120]
[341117408,1730400632557,-151.0,0.0005,120]
[341117409,1730400632566,-200.0,0.0005,2]
[341117410,1730400632576,-150.0,0.00050008,7]
[341117411,1730400632585,-150.0,0.00050015,7]
[341117412,1730400632594,-150.0,0.00050019,7]
[341117413,1730400632604,-150.0,0.00050059,7]
[341117414,1730400632613,-150.0,0.00050068,120]
[341117415,1730400632622,-690.24774,0.000501,2]
[341117416,1730400632631,-500.0,0.00050139,120]
[341117417,1730400632641,-154.624386,0.00050139,120]
[341117418,1730400632650,-151.0,0.00050139,120]
[341117419,1730400632659,-151.0,0.00050139,120]
[341117420,1730400632668,-151.0,0.00050139,120]
[341117421,1730400632678,-151.0,0.00050139,120]
[341117422,1730400632687,-151.0,0.00050139,120]
[341117423,1730400632695,-151.0,0.00050139,120]
[341117424,1730400632706,-151.0,0.00050139,120]
[341117425,1730400632716,-151.0,0.00050139,7]
[341117426,1730400632727,-282.911883,0.00050139,120]
[341117427,1730400632739,-282.911883,0.00050139,120]
[341117428,1730400632748,-403.811153,0.00050139,120]
[341117429,1730400632757,-403.811153,0.00050139,120]
[341117431,1730400632767,-151.0,0.00050219,60]
[341117433,1730400632777,-151.0,0.00050219,120]
[341117435,1730400632786,-151.0,0.00050219,120]
[341117437,1730400632795,-200.0,0.00050219,120]
[341117439,1730400632805,-157.587589,0.00050306,120]
[341117441,1730400632814,-151.0,0.00050306,120]
[341117443,1730400632825,-151.0,0.00050306,120]
[341117445,1730400632836,-151.0,0.00050306,120]
[341117447,1730400632845,-151.0,0.00050306,120]
[341117449,1730400632854,-151.0,0.00050306,120]
[341117451,1730400632862,-151.0,0.00050306,120]
[341117452,1730400632872,-542.32045812,0.00050328,15]
[341117453,1730400632881,-1000.0,0.00050397,2]
[341117454,1730400632890,-481.71,0.00050418,10]
[341117455,1730400632900,-401.43,0.00050418,10]
[341117456,1730400632909,-334.52,0.00050418,10]
[341117457,1730400632918,-20355.7824279,0.00050427,2]
[341117458,1730400632927,-7477.1551242,0.00050427,2]
[341117459,1730400632939,-353.36828,0.00050427,2]
[341117460,1730400632950,-251.98,0.00050427,2]
[341117461,1730400632963,-1393.0631505,0.00050427,2]
[341117462,1730400632973,-1.75013429,0.00050428,120]
[341117475,1730400637969,-298.26986571,0.00050428,120]
[341117476,1730400637979,-151.0,0.00050428,120]
[341117477,1730400637990,-151.0,0.00050428,120]
[341117478,1730400637999,-158.356863,0.00050428,120]
[341117479,1730400638008,-161.081987,0.00050428,120]
[341117480,1730400638017,-151.0,0.00050428,120]
[341117481,1730400638027,-151.0,0.00050428,120]
[341117482,1730400638037,-161.828062,0.00050428,120]
[341117483,1730400638046,-151.0,0.00050428,120]
[341117484,1730400638056,-151.0,0.00050428,120]
[341117485,1730400638065,-300.12719,0.00050428,7]
[341117486,1730400638075,-300.12719,0.00050428,7]
[341117487,1730400638084,-151.0,0.00050428,120]
[341117488,1730400638094,-151.0,0.00050428,120]
[341117489,1730400638103,-151.0,0.00050428,120]
[341117490,1730400638112,-151.0,0.00050428,120]
[341117491,1730400638122,-151.0,0.00050428,120]
[341117492,1730400638131,-2.8165475,0.00050454,120]
[341117493,1730400638143,-151.9417335,0.00050454,120]
[341117494,1730400638152,-151.0,0.00050454,60]
[341117495,1730400638161,-151.0,0.00050454,120]
[341117496,1730400638171,-151.0,0.00050454,120]
[341117497,1730400638180,-151.0,0.00050454,120]
[341117498,1730400638189,-151.0,0.00050454,120]
[341117499,1730400638199,-151.0,0.00050454,120]
[341117500,1730400638208,-189.877343,0.00050454,120]
[341117501,1730400638218,-151.0,0.00050454,120]
[341117502,1730400638227,-300.12719,0.00050454,7]
[341117503,1730400638237,-300.12719,0.00050454,7]
[341117504,1730400638246,-151.0,0.00050454,120]
[341117505,1730400638255,-151.0,0.00050454,120]
[341117506,1730400638264,-151.0,0.00050454,120]
[341117507,1730400638274,-151.0,0.00050454,7]
[341117508,1730400638283,-282.911883,0.00050454,120]
[341117509,1730400638293,-282.911883,0.00050454,120]
[341117510,1730400638303,-403.811153,0.00050454,120]
[341117511,1730400638312,-403.811153,0.00050454,120]
[341117512,1730400638321,-35.65023571,0.00050454,120]
[341117513,1730400638333,-115.34976429,0.00050454,120]
[341117515,1730400638343,-151.0,0.00050462,120]
[341117517,1730400638353,-151.0,0.00050462,120]
[341117519,1730400638362,-151.0,0.00050462,120]
[341117521,1730400638371,-151.0,0.00050462,120]
[341117523,1730400638382,-151.0,0.00050497,120]
[341117525,1730400638391,-151.0,0.00050497,120]
[341117527,1730400638401,-113.01434349,0.00050497,7]
[341117529,1730400638414,-37.98565651,0.00050497,7]
[341117531,1730400638424,-282.911883,0.00050497,120]
[341117533,1730400638433,-282.911883,0.00050497,120]
[341117535,1730400638443,-403.811153,0.00050497,120]
[341117537,1730400638453,-403.811153,0.00050497,120]
[341117539,1730400638463,-151.0,0.00050497,120]
[341117541,1730400638472,-151.0,0.00050498,120]
[341117543,1730400638482,-151.0,0.00050498,120]
[341117544,1730400638492,-1326.56825149,0.000505,2]
[341117546,1730400638504,-1117.19742602,0.000505,2]
[341117552,1730400638555,-8924.12560983,0.000505,2]
[341117584,1730400640193,-15182.74965096,0.000505,2]
[341117585,1730400640343,-5025.20000004,0.000505,2]
[341117587,1730400640355,-377.77010752,0.000505,2]
[341117590,1730400640373,-289.45120042,0.000505,2]
[341117592,1730400640385,-1408.21116,0.000505,2]
[341117595,1730400640397,-253.6246592,0.000505,2]
[341117603,1730400640477,-200.0,0.00049878,7]
[341117605,1730400640487,-31.49545562,0.000505,2]
[341117615,1730400640583,-401.58723214,0.000505,2]
[341117618,1730400640599,-35348.96365573,0.000505,2]
[341117796,1730400643057,-318.26,0.0005049,10]
[341117797,1730400643067,-13742.34,0.000505,2]
[341117799,1730400644783,150.0,0.00041705,2]
[341117808,1730400645944,-200.0,0.00049963,7]
[341117809,1730400645955,-192.79,0.00050365,2]
[341117810,1730400645964,-1809.50033956,0.000505,2]
[341117811,1730400646073,-2186.95812506,0.000505,2]
[341117812,1730400646084,-607.5828777,0.000505,2]
[341117813,1730400646098,-1923.63619231,0.000505,2]
[341117814,1730400646109,-375.39734837,0.000505,2]
[341117815,1730400646123,-1446.90498109,0.000505,2]
[341117816,1730400646134,-657.63031064,0.000505,2]
[341117839,1730400646490,-286.96166826,0.000505,2]
[341117857,1730400646646,-2234.83978885,0.000505,2]
[341117865,1730400646716,-452.74577873,0.000505,2]
[341118157,1730400706264,150.0,0.00041534,2]
[341118158,1730400785762,1500.0,0.00044741,120]